Cogmind - Beta 9 @@@ ROGUE MODE // 2019.10.28 @ 15:46:22 Player: MrPainting Result: Self-destructed Performance ------------- Evolutions (1) 500 Regions Visited (3) 600 Robots Destroyed (16) 80 Value Destroyed (431) 431 Prototype IDs (0) 0 Alien Tech Used (0) 0 Bonus (0) 0 TOTAL SCORE: 1611 Bonus ------- None Cogmind --------- Core Integrity 373/400 Matter 300/300 Energy 100/100 System Corruption 0% Temperature Cool (0) Location -9/Materials Parts ------- Power (1) Propulsion (2) Aluminum Leg Utility (2) Cooling System Structural Scanner Weapon (4) Particle Gun Heavy Hammer Inventory (4) Small Storage Unit Sensor Array ECM Suite High-powered Tractor Beam Peak State ------------ Power Light Nuclear Core Propulsion Light Treads Light Treads Utility Structural Scanner Shield Generator Weapon Heavy Hammer Heavy Hammer Inventory Improved Heat Sink Sensor Array ECM Suite High-powered Tractor Beam [Rating: 12] Favorites ----------- Power Light Nuclear Core Engine Ion Engine Power Core Light Nuclear Core Propulsion Light Treads Treads Light Treads Leg Aluminum Leg Utility Structural Scanner Device Structural Scanner Storage Small Storage Unit Weapon Heavy Hammer Energy Gun Particle Gun Ballistic Gun Light Assault Rifle Impact Weapon Heavy Hammer Build | -11 -10 -10 -9 ------- Run | Scr Mat Min Mat Slots Evolved 2 | . . . 2 Power . | . . . . Propulsion . | . . . . Utility . | . . . . Weapon 2 | . . . 2 Parts Attached 25 | 5 15 2 3 Power 3 | 1 2 . . Engine 2 | 1 1 . . Core 1 | . 1 . . Reactor . | . . . . Propulsion 8 | 2 5 1 . Treads 4 | . 4 . . Leg 4 | 2 1 1 . Wheel . | . . . . Hover . | . . . . Flight . | . . . . Utility 7 | . 4 1 2 Device 6 | . 3 1 2 Storage 1 | . 1 . . Processor . | . . . . Hackware . | . . . . Protection . | . . . . Artifact . | . . . . Weapon 7 | 2 4 . 1 Energy Gun 1 | . . . 1 Energy Cannon . | . . . . Ballistic Gun 4 | 2 2 . . Ballistic Cannon . | . . . . Launcher . | . . . . Special Weapon . | . . . . Impact Weapon 2 | . 2 . . Slashing Weapon . | . . . . Piercing Weapon . | . . . . Special Melee Weapon . | . . . . Unidentified Prototypes . | . . . . Parts Lost 7 | . 2 4 1 Power 2 | . 1 1 . Propulsion 3 | . 1 2 . Utility 1 | . . 1 . Weapon 1 | . . . 1 Highest Loss Streak 4 | . 1 4 1 Average Slot Usage (%) 82 | . 90 70 60 Engine 3 | . 4 . . Core 5 | . 7 . . Treads 13 | . 18 3 . Leg 9 | . 8 10 11 Device 18 | . 19 12 20 Storage 3 | . 1 14 1 Ballistic Gun 14 | . 21 . . Impact Weapon 12 | . 6 28 21 Naked Turns . | . . . . Heaviest Build 15 | 9 15 15 12 Greatest Support 40 | 20 40 40 10 Greatest Overweight (x) 3 | 2 . 3 1 Average Overweight (x) . | . . 1 . Largest Inventory Capacity 6 | 4 6 6 6 Average Capacity 4 | 4 4 6 4 Most Carried 6 | 4 6 6 6 Average Carried 3 | 2 3 4 4 Final Capacity 4 | . . . 4 Final Carried 4 | . . . 4 Class Distribution -------------------- 100% | Mutant Dominant Class ---------------- Mutant | -10/Materials Mutant | -10/Mines Mutant | -9/Materials Resources | -11 -10 -10 -9 ----------- Run | Scr Mat Min Mat Matter Collected 626 | 133 443 20 30 Remotely . | . . . . Salvage Created 568 | . 444 88 36 Parts 26 | . 24 2 . Haulers Intercepted 1 | . 1 . . Recyclers Shooed 2 | 1 1 . . Parts Field Recycled . | . . . . Retrieved Matter . | . . . . Parts Self-Destructed . | . . . . Prevented . | . . . . Kills | -11 -10 -10 -9 ------- Run | Scr Mat Min Mat Combat Hostiles Destroyed 15 | . 12 2 1 Melee 5 | . 4 1 . Guns 8 | . 8 . . Classes Destroyed 3 | . 3 . . Hauler 1 | . 1 . . Swarmer 5 | . 5 . . Grunt 10 | . 7 2 1 Best Kill Streak 3 | . 3 2 1 Combat Bots Only 3 | . 3 2 1 Max Kills in Single Turn 1 | . 1 1 1 Gunslinging . | . . . . Exploded . | . . . . Melee 1 | . 1 1 . Uniques/NPCs Destroyed . | . . . . Combat | -11 -10 -10 -9 -------- Run | Scr Mat Min Mat Damage Taken 1511 | . 1064 336 111 Core 237 | . 149 61 27 Absorbed by Shields 131 | . 101 30 . Core Remaining (%) 58 | 100 . 16 . Volleys Fired 50 | 4 45 . 1 Largest 2 | 2 2 . 1 Hottest 65 | 40 40 . 65 Shots Fired 99 | 8 90 . 1 Gun 99 | 8 90 . 1 Cannon . | . . . . Launcher . | . . . . Special . | . . . . Kinetic 98 | 8 90 . . Thermal 1 | . . . 1 Explosive . | . . . . Electromagnetic . | . . . . Robot Hit Streak 17 | 3 17 . . Robot Miss Streak 7 | 1 7 . 1 Penetration Max . | . . . . Secondary Targets 1 | . 1 . . Max Gunslinging Chain 1 | . 1 . . Shots Hit Robots 104 | 6 82 10 6 Core Hits 26 | 1 24 1 . Critical Hits 1 | . 1 . . Critical Kills 1 | . 1 . . Critical Parts Destroyed . | . . . . Melee Attacks 49 | . 27 14 8 Impact 49 | . 27 14 8 Slashing . | . . . . Piercing . | . . . . Sneak Attacks 3 | . 1 1 1 Combat Hostiles . | . . . . Follow-up Attacks 6 | . 4 1 1 Damage Inflicted 1646 | 87 1164 253 142 Guns 757 | 87 670 . . Cannons . | . . . . Explosions . | . . . . Melee 889 | . 494 253 142 Ramming . | . . . . Kinetic 757 | 87 670 . . Thermal . | . . . . Explosive . | . . . . Electromagnetic . | . . . . Impact 889 | . 494 253 142 Slashing . | . . . . Piercing . | . . . . Highest Corruption . | . . . . Average Corruption . | . . . . Corruption Purged . | . . . . Overload Shots . | . . . . Overflow Damage 101 | . 66 30 5 Projectiles . | . . . . Explosions . | . . . . Melee 101 | . 66 30 5 Knockbacks 3 | . 2 1 . Impact 3 | . 2 1 . Kinetic . | . . . . Secondary . | . . . . Self-Inflicted Damage . | . . . . Shots . | . . . . Rammed . | . . . . Targets Rammed . | . . . . Kicked . | . . . . Crushed . | . . . . Highest Temperature 164 | . 164 . 8 Average Temperature 43 | . 44 . 6 Received Heat Transfer 746 | . 502 193 51 Siege Activations . | . . . . Robots Corrupted . | . . . . Combat Hostiles . | . . . . Parts Fried 3 | . 1 1 1 Impact Corruptions 6 | . 3 2 1 Robots Melted . | . . . . Combat Hostiles . | . . . . Parts Melted . | . . . . Heat Transferred . | . . . . Parts Sabotaged . | . . . . Parts Stolen . | . . . . Parts Stripped . | . . . . Power Chain Reactions . | . . . . Missiles Intercepted . | . . . . Alert | -11 -10 -10 -9 ------- Run | Scr Mat Min Mat Peak Influence 157 | . 157 43 46 Average Influence 47 | . 57 38 23 Maximum Alert Level . | . . . . Low Security (%) 100 | . . . . Level 1 . | . . . . Level 2 . | . . . . Level 3 . | . . . . Level 4 . | . . . . Level 5 . | . . . . High Security . | . . . . Max Security . | . . . . Squads Dispatched 3 | . 3 . . Investigation 2 | . 2 . . Extermination . | . . . . Reinforcement 1 | . 1 . . Assault . | . . . . Garrison . | . . . . Intercept . | . . . . Construction Impeded . | . . . . Haulers Reinforced . | . . . . Stealth | -11 -10 -10 -9 --------- Run | Scr Mat Min Mat Distress Signals . | . . . . Communications Jammed . | . . . . Distress Signals . | . . . . Times Spotted 30 | . 26 2 2 Peak Tracking Total 5 | . 5 2 2 Tactical Retreats 2 | . 2 . . Traps | -11 -10 -10 -9 ------- Run | Scr Mat Min Mat Traps Triggered 1 | . 1 . . Indirectly . | . . . . Trap Hack Attempts . | . . . . Triggered . | . . . . Disarmed . | . . . . Reprogrammed . | . . . . Reused . | . . . . Traps Extracted . | . . . . Installed . | . . . . Triggered . | . . . . Machines | -11 -10 -10 -9 ---------- Run | Scr Mat Min Mat Machines Disabled . | . . . . Max in Single Turn . | . . . . Machines Sabotaged . | . . . . Garrisons Compromised . | . . . . Overloaded Fab Kills . | . . . . Fab Network Shutdowns . | . . . . Hacking | -11 -10 -10 -9 --------- Run | Scr Mat Min Mat Machines Accessed 5 | . 4 . 1 Terminals 5 | . 4 . 1 Fabricators . | . . . . Repair Stations . | . . . . Recycling Units . | . . . . Scanalyzers . | . . . . Garrison Access . | . . . . Total Hacks 25 | . 22 . 3 Successful 14 | . 13 . 1 Failed 11 | . 9 . 2 Catastrophic . | . . . . Database Lockouts . | . . . . Manual 19 | . 16 . 3 Terminals 25 | . 22 . 3 Fabricators . | . . . . Repair Stations . | . . . . Recycling Units . | . . . . Scanalyzers . | . . . . Garrison Access . | . . . . Terminal Hacks 4 | . 4 . . Alert Level 1 | . 1 . . Unreport Threat 1 | . 1 . . Hauler Manifests 1 | . 1 . . Zone Layout 1 | . 1 . . Fabricator Hacks . | . . . . Repair Station Hacks . | . . . . Recycling Unit Hacks . | . . . . Scanalyzer . | . . . . Garrison Access Hacks . | . . . . Unauthorized Hacks 29 | . 25 . 4 Terminals 10 | . 9 . 1 Track 3 | . 3 . . Assimilate 3 | . 3 . . Botnet 4 | . 3 . 1 Fabricators . | . . . . Repair Stations . | . . . . Recycling Units . | . . . . Scanalyzers . | . . . . Garrison Access . | . . . . Data Cores Recovered . | . . . . Used . | . . . . Hacking Detections 4 | . 3 . 1 Full Trace Events 1 | . 1 . . Feedback Events . | . . . . Feedback Blocked . | . . . . Robot Schematics Acquired . | . . . . Robots Built . | . . . . Matter . | . . . . Time . | . . . . Total Robot Build Rating . | . . . . Part Schematics Acquired . | . . . . Parts Built . | . . . . Matter . | . . . . Time . | . . . . Total Part Build Rating . | . . . . Parts Repaired . | . . . . Time . | . . . . Parts Recycled . | . . . . Recycled Matter . | . . . . Retrieved Matter . | . . . . Retrieved Components . | . . . . Parts Scanalyzed . | . . . . Part Schematics Acquired . | . . . . Parts Damaged . | . . . . Bothacking | -11 -10 -10 -9 ------------ Run | Scr Mat Min Mat Used RIF Installer . | . . . . Robots Hacked . | . . . . Non-combat . | . . . . Combat . | . . . . Robot Hacks Applied . | . . . . Relay Couplers Released . | . . . . Robots Rewired . | . . . . Allies Hacked . | . . . . Hacks Repelled . | . . . . Allies | -11 -10 -10 -9 -------- Run | Scr Mat Min Mat Total Allies . | . . . . Largest Group . | . . . . Highest-Rated Group . | . . . . Highest-Rated Ally . | . . . . Total Orders . | . . . . Ally Attacks . | . . . . Total Damage . | . . . . Kills . | . . . . Allies Corrupted . | . . . . Allies Melted . | . . . . Intel | -11 -10 -10 -9 ------- Run | Scr Mat Min Mat Robot Analysis Total . | . . . . Derelict Logs Recovered 1 | . . 1 . Drone Launches . | . . . . Drone Recoveries . | . . . . Exploration | -11 -10 -10 -9 ------------- Run | Scr Mat Min Mat Turns Passed 1383 | 61 926 216 180 Spaces Moved 710 | 34 451 115 110 Core 12 | 10 . 2 . Treads 277 | . 275 2 . Legs 421 | 24 176 111 110 Wheels . | . . . . Hover . | . . . . Flight . | . . . . Fastest Speed 50 | 50 120 150 120 Average Speed 142 | 111 144 151 135 Slowest Speed 200 | 150 160 200 150 Overloaded Moves . | . . . . Propulsion Burnouts . | . . . . Robots Hopped . | . . . . Cave-ins Triggered . | . . . . Exploration Rate (%) 29 | 3 63 42 8 Regions Visited 3 Branch Regions 1 Pre-discovered Areas . | . . . . Known Exits Taken . | . . . . Unknown Exits Taken 3 | 1 1 1 . Scrap Searched . | . . . . Spaces Dug . | . . . . Terrain Destroyed . | . . . . Melee . | . . . . Projectile . | . . . . AOE . | . . . . Actions | -11 -10 -10 -9 --------- Run | Scr Mat Min Mat Total 907 | 49 603 131 124 Wait 43 | . 43 . . Move 707 | 33 450 114 110 Hop . | . . . . Pick Up 24 | 7 14 2 1 Fast Attach 5 | . 4 . 1 Attach 10 | 5 3 2 . Detach . | . . . . Swap 10 | . 8 . 2 Drop 16 | . 14 . 2 Fire 50 | 4 45 . 1 Melee 42 | . 22 13 7 Ram . | . . . . Kick . | . . . . Crush . | . . . . Escape Stasis . | . . . . Rewire . | . . . . Trap . | . . . . Miscellaneous . | . . . . Route ------- -11/Scrapyard -10/Materials (discovered 3 exits: Mat / [*Min x2]) -10/Mines -9/Materials History --------- Turn | Location | Event 2 | -11/Scrapyard | Met Revision 17 13 | -11/Scrapyard | Discovered new exit (range 14) 62 | -11/Scrapyard | Entered Materials 131 | -10/Materials | Discovered new exit (range 13) 180 | -10/Materials | Discovered new exit (range 17) 314 | -10/Materials | Build established: Mutant 903 | -10/Materials | Core integrity fell below 50% 980 | -10/Materials | Discovered new exit (range 6) 988 | -10/Materials | Entered Mines 1021 | -10/Mines | Met a Derelict bent on vengeance 1027 | -10/Mines | Core integrity fell below 20% 1045 | -10/Mines | Lost 4 parts (1p2n1u) 1188 | -10/Mines | Discovered new exit (range 8) 1191 | -10/Mines | Learned Materials security intel 1204 | -10/Mines | Entered Materials 1204 | -9/Materials | Evolved 2 slots: Weapon x2 1384 | -9/Materials | Self-destructed Last Messages --------------- Loading Materials security intel (x10)... 01218_ Acquired Cooling System. 01220_ Dropped Heat Sink. 01221_ Dropped Imp. Heat Sink. 01272_ Connecting with Terminal... 01272_ Current location identified: Materials >>Trojan(Botnet) Trojan loaded successfully. Testing... Terminal linked with 0 systems. Awaiting botnet instructions. 01283_ Acquired Particle Gun. 01331_ Sneak attack on A-02 Transporter. 01339_ Hvy. Hammer follow-up attack on G-34 Mercenary. 01348_ Destroyed Sml. Laser. 01348_ G-34 Mercenary system corrupted by crushing effect. 01349_ G-34 Mercenary system terminally corrupted. 01349_ Aluminum Leg fried. 01351_ Acquired 30 matter. 01379_ Hvy. Hammer destroyed. Map ----- +----------------------------------------------------+ | | | | | | | | | | | | | | | | | | | | | | | | | | | | | | | | | | | | | ?????????????????????#########??????????????? | | ????????????####?????# #??????????????? | | ???????????? ##### #??????????????? | | ???????????? #??????????????? | | ??????????? T +??????????????? | | ?????????????? #??????????????? | | ?????????????????????# #??????????????? | | ?????????????????????# @ #??????????????? | | ?????????????????????#### ####??????????????? | | ????????????????????????# #?????????????????? | | ????????????????????????# #?????????????????? | | ???????????????????????##+################??? | | ???????????????????????# %# # """ #??? | | ???????????????????????# """ # # """ #??? | | ???????????????????????#!!""" # # """ #??? | | ???????????????????????# """ + + #??? | | ???????????????????????# """ # # #??? | | ???????????????????????# # # #??? | | ??????????????????????######### ########??? | | ??????????????????????# """ #????????? | | ??????????????????????# "T" ! #????????? | | ??????????????????????# #????????? | | ??????????????????????# #????????? | | ???????????????######## """ #????????? | | ???????????????# """ # """ ##????????? | | ???????????????# "R" # """ #?????????? | | ???????????????# " " + #?????????? | | ???????????????# # #?????????? | | ???????????????# # #?????????? | | ???????????????# # +?????????? | | ???????????????######## ##### #?????????? | | ??????????????????????# #????####?????????? | +----------------------------------------------------+ Best States ------------- Heat Dissipation 50 Energy Generation 14 Energy Capacity 250 Matter Stores 300 Matter Capacity 300 Sight Range 16 Robot Scan Range 10 Terrain Scan Density 10 Evasion (%) 40 Recoil Reduction 2 Item Schematics ----------------- None Robot Schematics ------------------ None Fabricated ------------ Nothing Alien Tech Used ----------------- None Achievements -------------- None Challenges ------------ None Game ------ Seed SpectralContainmentCutter Manual? 0 Play Time 00:14:09 Cumulative 42.5 hours Start 2019.10.28 @ 15:34:01 End 2019.10.28 @ 15:46:22 Sessions 1 Manual Loads 0 Difficulty Rogue Special Mode None Game No. 69 Rogue 69 Adventurer 0 Explorer 0 Win Type - Total 0 Types 0/0/0/0/0/0/0 Lore% 27 Gallery% 33 Achievement% 26 Wizard Run 0 Options --------- ASCII 0 Keyboard 0 Movement Mouse Keybinds 0 Fullscreen 1 Font 18/SmallcapsGlow Map View 76x50 Tactical HUD 1 Map Filters NONE Filters NONE Steam 1 RUN: 4451063d-fcfa-4a7e-896c-670ef313af98